[Event "4NCL 2022-2023"]
[Site "Daventry"]
[Date "2023.03.19"]
[Round "8.23"]
[White "Serbanescu, Diana-Maria"]
[Black "Kolbus, Dietmar"]
[Result "0-1"]
[ECO "B01"]
[WhiteElo "1978"]
[BlackElo "2277"]
[Annotator "TA"]
[PlyCount "184"]
[EventDate "2022.10.20"]
[EventType "team-tourn"]
[EventCountry "ENG"]
[SourceTitle "playchess.com"]
[Source "ChessBase"]
[SourceQuality "1"]
[TimeControl "40/6000+30:2400+30"]

{[%evp 9,184,8,49,24,35,25,31,16,28,16,24,0,0,0,0,0,0,0,0,0,27,30,33,25,39,32,40,45,41,56,27,17,19,20,50,47,36,9,14,0,0,0,0,0,0,0,6,0,51,0,5,0,31,0,15,13,16,-5,-5,-5,-5,-17,-8,-17,-16,-20,-16,-26,-8,-8,0,-128,-131,-139,-139,-130,-126,-134,-133,-133,-130,-172,-132,-185,-186,-185,-185,-199,-204,-191,-159,-178,-177,-172,-86,-88,-66,-69,-58,-58,-56,-58,-24,-104,-8,-8,-8,-81,-8,-8,-8,-8,-8,-8,-8,-8,-8,-8,-8,-8,-8,-8,-8,-8,-8,-8,-8,-8,-8,-8,-8,-8,-8,-8,-8,-8,-8,-29959,-29961,-29961,-8,-29968,-29969,-29969,-29968,-29969,-29971,-29971,-29972,-29972,-29973,-29973,-29972,-29972,-29973,-29973,-29974,-29974,-29975,-29975,-29976,-29977,-29977,-29977,-29978,-29978,-29979,-29980,-29980,-29980,-29981,-29981,-29982,-29982,-29983,-29983,-29984]} 1. e4 {[%emt 0:02:10]} d5 {[%emt 0:00:00]} 2. exd5 {[%emt 0:00:05]} Qxd5 {[%emt 0:00:00]} 3. Nc3 {[%emt 0:00:10]} Qd6 {[%emt 0:00:00]} 4. d4 {[%emt 0:05:11]} Nf6 {[%emt 0:00:00]} 5. Nge2 {[%emt 0:03:03]} c6 {[%emt 0:00:39]} 6. a3 {[%emt 0:04:19] B01: Scandinavian Defence.} Bf5 {[%emt 0:02:42]} 7. Bf4 {[%emt 0:02:40]} Qd8 {[%emt 0:01:35]} 8. Qd2 {[%emt 0:01:40] White is slightly better.} e6 {[%emt 0:00:17]} 9. Ng3 {[%emt 0:04:35]} Bg6 {[%emt 0:00:07]} 10. Be2 {[%emt 0:01:43]} Nbd7 {[%emt 0:00:20] [#]} 11. h4 $146 {[%emt 0:03:37] aiming for h5.} ({Predecessor:} 11. h3 Nb6 12. O-O Be7 13. Rfe1 O-O 14. Bf1 Nbd5 15. Nce2 h6 16. c4 Nxf4 17. Nxf4 {½-½ Moll Pons,J (1768)-Gil Jimenez,R (1412) ESP-ch U14 Salobrena 2021 (2)}) 11... h6 {[%emt 0:00:13]} 12. h5 {[%emt 0:01:08]} Bh7 {[%emt 0:00:09]} 13. Bd3 {[%emt 0:03:56]} Bxd3 {[%emt 0:09:56]} 14. Qxd3 {[%emt 0:00:08]} Nb6 {[%emt 0:00:21]} 15. Nge4 {[%emt 0:07:34]} Nxe4 {[%emt 0:04:28]} 16. Nxe4 {[%emt 0:00:08]} Qd5 {[%emt 0:00:44]} 17. O-O-O {[%emt 0:06:16]} O-O-O {[%emt 0:01:29]} 18. Kb1 {[%emt 0:01:54] Black is weak on the dark squares} Qb5 {[%emt 0:13:08]} 19. Qxb5 {[%emt 0:02:09]} cxb5 {[%emt 0:00:03]} 20. Nc3 {[%emt 0:02:04]} a6 {[%emt 0:00:19]} 21. Rd3 {[%emt 0:01:49]} Bd6 {[%emt 0:12:12]} 22. Bxd6 {[%emt 0:01:30]} Rxd6 {[%emt 0:00:03]} 23. Rhd1 {[%emt 0:00:41]} Nd5 {[%emt 0:03:03]} 24. Nxd5 {[%emt 0:02:02]} Rxd5 $11 {[%emt 0:00:06][%mdl 4096] Endgame KRR-KRR} 25. g4 {[%emt 0:00:44]} Rhd8 {[%emt 0:01:33]} 26. f3 {[%emt 0:02:04]} Kd7 {[%emt 0:00:18]} 27. c3 {[%emt 0:01:01]} Ke7 {[%emt 0:00:08]} 28. Kc2 {[%emt 0:00:10]} Kf6 {[%emt 0:01:56]} (28... f5 $11) 29. b3 {[%emt 0:02:37]} (29. Re3 $14) 29... Rc8 {[%emt 0:00:22]} 30. Re1 {[%emt 0:03:02]} Rc7 {[%emt 0:00:35]} 31. Re2 {[%emt 0:03:28]} g6 {[%emt 0:06:19]} 32. hxg6 {[%emt 0:04:23]} Kxg6 {[%emt 0:00:09]} 33. Re1 {[%emt 0:02:02]} h5 {[%emt 0:00:15]} 34. gxh5+ {[%emt 0:01:34]} Rxh5 {[%emt 0:00:04]} 35. Re2 {[%emt 0:00:32]} Kf6 {[%emt 0:00:11]} 36. Rg2 {[%emt 0:01:29]} Rc8 {[%emt 0:00:54]} 37. Re3 {[%emt 0:02:48]} Rh1 {[%emt 0:00:54]} 38. Rf2 {[%emt 0:02:09]} Ra1 {[%emt 0:04:03]} 39. Kb2 {[%emt 0:00:20] Inhibits Ra2+.} Rd1 {[%emt 0:00:29]} 40. Kc2 {[%emt 0:00:15]} (40. f4 $11) 40... Rxd4 $17 {[%emt 0:00:12]} 41. Rh2 {[%emt 0:41:13]} Rd5 {[%emt 0:40:33]} 42. Rh6+ {[%emt 0:02:08]} Kg7 {[%emt 0:03:11]} 43. Rh2 {[%emt 0:00:21]} Rcd8 {[%emt 0:02:47]} 44. Rg2+ {[%emt 0:06:40]} Kf6 {[%emt 0:00:07]} 45. Rh2 {[%emt 0:00:04]} Rd1 {[%emt 0:00:55]} 46. c4 {[%emt 0:02:46]} (46. Re4 $17 {might work better.}) 46... bxc4 $19 {[%emt 0:03:18]} 47. bxc4 {[%emt 0:00:06]} R1d4 {[%emt 0:00:07]} 48. Rc3 {[%emt 0:00:37]} Rc8 {[%emt 0:04:41]} 49. Kb3 {[%emt 0:01:46]} Rc6 {[%emt 0:04:51]} 50. a4 {[%emt 0:02:25]} Rb6+ {[%emt 0:01:43]} 51. Ka3 {[%emt 0:01:05]} a5 {[%emt 0:01:37]} ({Black should play} 51... Rb1 $19 52. a5 Rf4) 52. Rh5 $17 {[%emt 0:01:19]} Rb4 {[%emt 0:00:41] Strongly threatening ...b6.} 53. Rxa5 {[%emt 0:01:13]} Rdxc4 {[%emt 0:00:26]} 54. Rxc4 {[%emt 0:04:47]} Rxc4 $15 {[%emt 0:00:02] KR-KR} 55. Rb5 {[%emt 0:00:31]} Rc7 {[%emt 0:02:53] Hoping for ...e5.} 56. Kb4 {[%emt 0:00:40]} (56. f4 $1 $11) 56... Ke7 {[%emt 0:00:15]} (56... e5 $1 $17 {Threatens to win with ...Kf5.} 57. Ka5 Re7) 57. Ka5 $11 {[%emt 0:00:39]} Kd8 {[%emt 0:02:48]} 58. f4 {[%emt 0:05:59] [#]} (58. Kb6 $1 $11 {remains equal.}) 58... Kc8 {[%emt 0:00:22]} (58... Rd7 $1 $17 {[%cal Rd7d5]}) 59. f5 {[%emt 0:01:01]} Rc6 {[%emt 0:09:18]} 60. fxe6 {[%emt 0:00:00]} Ra6+ {[%emt 0:00:00]} 61. Kb4 {[%emt 0:00:00]} Rxe6 {[%emt 0:00:00]} 62. Rf5 {[%emt 0:00:00]} f6 {[%emt 0:00:00]} 63. a5 {[%emt 0:00:00]} Kc7 {[%emt 0:00:00]} 64. Kc4 {[%emt 0:00:00]} Kb8 {[%emt 0:00:00]} 65. Rh5 {[%emt 0:00:00]} Ka7 {[%emt 0:00:00]} 66. Rh7 {[%emt 0:00:00]} Ka6 {[%emt 0:00:00]} 67. Rf7 {[%emt 0:00:00]} Re4+ {[%emt 0:00:00]} 68. Kd3 {[%emt 0:00:00]} Rf4 {[%emt 0:00:00]} 69. Ke3 {[%emt 0:00:00]} Rf1 {[%emt 0:00:00]} 70. Ke2 {[%emt 0:00:00]} Rf5 {[%emt 0:00:00]} 71. Ke3 {[%emt 0:00:00]} Rb5 {[%emt 0:00:00]} 72. Rxf6+ {[%emt 0:00:00]} Kxa5 {[%emt 0:00:00] ( -> ...Rd5)} 73. Kd4 $2 {[%emt 0:00:00][%mdl 8192] [#] Inhibits Rd5+. White is on the road to losing.} (73. Rf7 $11) 73... Rb3 $1 {[%emt 0:00:00]} 74. Kc4 {[%emt 0:00:00]} Ka4 $2 {[%emt 0:00:00]} (74... Rg3 {mates} 75. Rf5+ Ka4 76. Rf4 b5+ 77. Kc5+ Ka5 78. Rf8 Rc3+ 79. Kd4 b4 80. Rf7 Ka4 81. Rg7 Kb3 82. Rh7 Kb2 83. Rh8 b3 84. Rg8 Rh3 85. Kc4 Ka2 86. Kb4 b2 87. Ra8+ Kb1 88. Rc8 Rh4+ 89. Kb3 Rh6 90. Kb4 Rb6+ 91. Kc3 Rd6 92. Rh8 Ra6 93. Rh1+ Ka2 94. Rh2 Ka1 95. Rxb2 Rc6+ 96. Kb3 Rb6+ 97. Kc2 Rxb2+ 98. Kc3 Ra2 99. Kc4 Rd2 100. Kc3 Rd8 101. Kc2 Ka2 102. Kc3 Ka3 103. Kc4 Ka4 104. Kc5 Kb3 105. Kb5 Rd5+ 106. Kc6 Kc4 107. Kb6 Rd6+ 108. Kc7 Kc5 109. Kb7 Rd7+ 110. Kc8 Kc6 111. Kb8 Rd8+ 112. Ka7 Re8 113. Ka6 Ra8#) 75. Rf8 $2 {[%emt 0:00:00][%mdl 8192]} (75. Kc5 $11) 75... b5+ {[%emt 0:00:00] Black mates.} 76. Kc5 {[%emt 0:00:00]} Rc3+ {[%emt 0:00:00]} 77. Kd4 {[%emt 0:00:00]} b4 {[%emt 0:00:00]} 78. Ra8+ {[%emt 0:00:00]} Kb3 {[%emt 0:00:00]} 79. Rb8 {[%emt 0:00:00]} Rh3 {[%emt 0:00:00]} 80. Rb7 {[%emt 0:00:00]} Rh4+ {[%emt 0:00:00]} 81. Kd3 {[%emt 0:00:00]} Kb2 {[%emt 0:00:00]} 82. Kd2 {[%emt 0:00:00]} b3 {[%emt 0:00:00]} 83. Rb8 {[%emt 0:00:00]} Rd4+ {[%emt 0:00:00]} 84. Ke3 {[%emt 0:00:00]} Rd7 {[%emt 0:00:00]} 85. Ke2 {[%emt 0:00:00]} Kc2 {[%emt 0:00:00]} 86. Rc8+ {[%emt 0:00:00]} Kb1 {[%emt 0:00:00]} 87. Rb8 {[%emt 0:00:00]} b2 {[%emt 0:00:00]} 88. Rb6 {[%emt 0:00:00]} Rd5 {[%emt 0:00:00]} 89. Rb8 {[%emt 0:00:00]} Ra5 {[%emt 0:00:00]} 90. Kd2 {[%emt 0:00:00]} Ka2 {[%emt 0:00:00]} 91. Kc2 {[%emt 0:00:00] [#]} b1=Q+ $1 {[%emt 0:00:00][%mdl 512]} 92. Rxb1 {[%emt 0:00:00]} Rc5+ {[%emt 0:00:00][%mdl 64] Deflection.   Weighted Error Value: White=0.16 (very precise) /Black=0.16 (very precise)} 0-1

[Event "4NCL 2022-2023"]
[Site "Daventry"]
[Date "2023.03.19"]
[Round "8.24"]
[White "Terbe, Julianna"]
[Black "Maciol, Ryszard"]
[Result "0-1"]
[ECO "D02"]
[WhiteElo "2278"]
[BlackElo "2136"]
[Annotator "TA"]
[PlyCount "88"]
[EventDate "2022.10.20"]
[EventType "team-tourn"]
[EventCountry "ENG"]
[SourceTitle "playchess.com"]
[Source "ChessBase"]
[SourceQuality "1"]
[TimeControl "40/6000+30:2400+30"]

{[%evp 9,88,9,9,11,47,32,39,18,46,50,51,53,59,38,80,82,70,10,7,4,4,10,12,0,0,-5,-1,0,0,-16,0,0,0,0,0,-29,6,-27,0,-10,-9,-11,-11,-43,-53,-82,-81,-91,-19,-59,-10,-50,21,-9,-12,-5,0,-86,-62,-135,7,-87,-90,-162,-223,-170,-174,-193,-152,-295,-285,-358,-383,-381,-371,-29986,-29987,-29987,-29988,-29988,-29989]} 1. Nf3 {[%emt 0:00:03]} d5 {[%emt 1:41:00]} 2. d4 {[%emt 1:41:27]} Nf6 {[%emt 0:00:00]} 3. g3 {[%emt 0:00:00]} Bf5 {[%emt 0:01:00]} 4. c4 {[%emt 0:01:00]} e6 {[%emt 0:00:00]} 5. Nc3 {[%emt 0:00:30]} c6 {[%emt 0:00:00]} 6. Nh4 {[%emt 0:00:30] D02: 1 d4 d5 2 Nf3 sidelines, including 2...Nf6 3 g3 and 2...Nf6 3 Bf4.} Bg4 {[%emt 0:00:00]} 7. f3 {[%emt 0:00:30]} Bh5 {[%emt 0:00:00]} 8. Qb3 {[%emt 0:00:30] White is slightly better.} Qc8 {[%emt 0:02:30]} 9. g4 {[%emt 0:00:00]} Bg6 {[%emt 0:00:30] [#]} 10. Nxg6 $146 {[%emt 0:01:00]} ({Predecessor:} 10. Bf4 Be7 11. e3 Nbd7 12. Rc1 O-O 13. Nxg6 hxg6 14. Kf2 dxc4 15. Bxc4 Nb6 16. Bd3 {0-1 Koubova,A (1805)-Havanecz,B (2181) Mitropa Cup (Women) 2017 (9.4)}) 10... hxg6 {[%emt 0:00:30]} 11. Bf4 {[%emt 0:00:30] Prevents Bd6.} Na6 {[%emt 0:00:30]} 12. e3 {[%emt 0:00:30]} Nc7 {[%emt 0:00:00]} 13. Rc1 (13. Bg3 $14) 13... dxc4 $11 {[%emt 0:01:00]} 14. Bxc4 {[%emt 0:01:00]} (14. Qxc4 Ncd5 15. Ne2 Nxf4 16. Nxf4 Qc7 $17) 14... Nfd5 {[%emt 0:00:00]} 15. Nxd5 exd5 {[%emt 0:00:00]} 16. Bd3 Be7 {[%emt 0:01:30]} 17. Kf2 {[%emt 0:01:30]} Ne6 {[%emt 0:00:30]} 18. Bg3 {[%emt 0:00:30]} Bh4 {[%emt 0:00:30]} 19. Qc2 {[%emt 0:00:00]} Qd7 {[%emt 0:00:00]} 20. b4 {[%emt 0:00:00]} a6 {[%emt 0:00:00]} 21. a4 {[%emt 0:00:00]} Qe7 {[%emt 0:00:00]} 22. Qb3 {[%emt 0:00:00]} O-O {[%emt 0:00:00]} 23. f4 {[%emt 0:00:00]} Rfe8 {[%emt 0:00:00][%cal Oe6f4]} (23... a5 {with more complications.} 24. b5 c5 25. dxc5 Nxc5 26. Qxd5 b6) 24. Rce1 {[%emt 0:00:00]} g5 {[%emt 0:00:00]} 25. Bxh4 {[%emt 0:00:00]} gxh4 {[%emt 0:00:00]} 26. g5 {[%emt 0:00:00]} g6 {[%emt 0:00:00]} 27. Rhg1 {[%emt 0:00:00] [#]} a5 $1 {[%emt 0:00:00]} 28. bxa5 {[%emt 0:00:00]} c5 {[%emt 0:00:00]} (28... Rxa5 $17 29. Bc2 Qc7) 29. Bb5 {[%emt 0:00:00]} ({Reject} 29. Qxd5 cxd4 30. Qe5 (30. exd4 $2 Qb4 $19) 30... Qb4 $15) 29... Red8 {[%emt 0:00:00]} (29... c4 $15 {is more appropriate.} 30. Qd1 Red8) 30. Rg4 {[%emt 0:00:00]} Qd6 {[%emt 0:00:00]} ({Black should try} 30... c4 $15 31. Qc3 Ng7) 31. Rxh4 {[%emt 0:00:00]} c4 $1 $36 {[%emt 0:00:00][%mdl 2048] Black is more active.} 32. Qc3 {[%emt 0:00:00]} Ng7 {[%emt 0:00:24][%cal Be6g7,Bg7f5,Bf5g3][%mdl 32]} 33. Rg4 {[%emt 0:00:00]} (33. Kf1 $11 {remains equal.}) 33... Qe6 {[%emt 0:02:41][%mdl 1024] Black has strong compensation.} 34. h3 {[%emt 0:00:00]} (34. Rg3 $15) 34... Qe4 {[%emt 0:01:31]} (34... Nf5 $17 35. Kg1 Qe4) 35. h4 {[%emt 0:00:00]} (35. f5 $1 $11 Qxf5+ 36. Kg2) 35... Nf5 $17 {[%emt 0:01:09] Black is more active.} 36. Rc1 {[%emt 0:00:00]} (36. Qb2 $17) 36... Kg7 $19 {[%emt 0:00:35]} 37. h5 {[%emt 0:04:53]} gxh5 {[%emt 0:00:29]} 38. Rg2 {[%emt 0:00:05]} h4 {[%emt 0:00:37][%cal Od8e8] ...Re8! is the strong threat.} (38... Nh4 39. Rg3 $17) 39. Rh1 {[%emt 0:00:41]} (39. Rh2 $17 {was called for.}) 39... Rh8 {[%emt 0:01:00] ...h3 would be deadly.} 40. Rh3 {[%emt 0:00:47]} Ng3 {[%emt 0:00:27]} 41. Rgh2 {[%emt 0:00:00]} Qf5 {[%emt 0:00:00] Hoping for ...Ne4+.} ({And not} 41... Qb1 42. Qe1 Ne4+ 43. Kf1 Qd3+ 44. Kg1 $15) 42. Qa3 $2 {[%emt 0:08:53] [#]} (42. Qc1 $19 Qg4 43. Qc2) 42... Qc2+ {[%emt 0:01:08] Black mates.} ({Worse is} 42... Rxa5 43. Rxh4 Rxh4 44. Rxh4 Ne4+ 45. Ke1 $15) 43. Ke1 {[%emt 0:01:45]} Qb1+ {[%emt 0:00:36]} 44. Kd2 {[%emt 0:00:15]} c3+ {[%emt 0:01:09][%mdl 64] Decoy. Excellently played by Maciol!   Weighted Error Value: White=0.44/Black=0.18 (very precise)} 0-1

[Event "4NCL 2022-2023"]
[Site "Daventry"]
[Date "2023.03.19"]
[Round "8.25"]
[White "Sarakauskas, Gediminas"]
[Black "Murphy, Conor E"]
[Result "0-1"]
[ECO "C54"]
[WhiteElo "2387"]
[BlackElo "2431"]
[Annotator "TA"]
[PlyCount "102"]
[EventDate "2022.10.20"]
[EventType "team-tourn"]
[EventCountry "ENG"]
[SourceTitle "playchess.com"]
[Source "ChessBase"]
[SourceQuality "1"]
[TimeControl "40/6000+30:2400+30"]

{[%evp 10,102,16,7,24,13,20,11,14,5,17,11,0,0,0,0,3,0,10,0,18,0,-11,-8,-3,0,4,0,3,0,14,5,3,7,5,0,0,0,0,0,0,0,0,0,0,0,0,0,0,0,0,0,0,-18,-8,-10,0,-8,-8,-25,64,-52,-53,-607,-547,-693,-605,-615,-436,-427,0,-545,0,-407,-414,-414,-419,-401,-401,-486,-505,-469,-441,-1614,-539,-705,-713,-689,-629,-640,-641,-617,-605,-595,-586]} 1. e4 {[%emt 0:00:02]} e5 {[%emt 0:10:13]} 2. Nf3 {[%emt 0:00:05]} Nc6 {[%emt 0:00:23]} 3. Bc4 {[%emt 0:00:05]} Nf6 {[%emt 0:01:08]} 4. d3 {[%emt 0:00:09]} Bc5 {[%emt 0:00:37]} 5. O-O {[%emt 0:00:35]} d6 {[%emt 0:01:48]} 6. c3 {[%emt 0:00:08]} a5 {[%emt 0:03:16] C54: Giuoco Piano: 4 c3 Nf6, main lines with 5 d4 and 5 d3.} 7. Nbd2 {[%emt 0:04:31]} O-O {[%emt 0:02:02]} 8. h3 {[%emt 0:00:06]} Be6 {[%emt 0:04:38] The position is equal.} 9. Re1 {[%emt 0:10:01]} Ba7 {[%emt 0:07:43]} 10. Bb3 {[%emt 0:03:52]} Bxb3 {[%emt 0:11:45]} 11. Qxb3 {[%emt 0:00:42] [#]} a4 $146 {[%emt 0:00:43]} ({Predecessor:} 11... Qd7 12. Nf1 h6 13. a4 Rfe8 14. Be3 Bxe3 15. Nxe3 Ne7 16. Rad1 Ng6 17. Nh2 b6 {1-0 Korneev,O (2521)-Jahncke,G (2326) Heraklion Fischer Memorial 8th 2022 (6)}) 12. Qc2 {[%emt 0:15:07]} (12. Qxa4 $2 Bxf2+ 13. Kxf2 Rxa4 $19) (12. Qxb7 Qd7 13. d4 Bb6 $15) 12... d5 {[%emt 0:14:37]} 13. Nf1 {[%emt 0:00:22][%cal Bd2f1,Bf1g3,Bg3f5][%mdl 32]} d4 {[%emt 0:06:33]} 14. Ng3 {[%emt 0:08:49]} Nd7 {[%emt 0:02:26]} 15. cxd4 {[%emt 0:17:29]} Nxd4 {[%emt 0:04:39]} 16. Nxd4 {[%emt 0:01:49]} Bxd4 {[%emt 0:00:17]} 17. Nf5 {[%emt 0:03:56]} Bb6 {[%emt 0:03:02]} 18. Be3 {[%emt 0:07:51]} Bxe3 {[%emt 0:02:36]} 19. Nxe3 {[%emt 0:00:06]} c6 {[%emt 0:06:48]} 20. Rad1 {[%emt 0:06:15]} Qb6 {[%emt 0:01:49] Repels d4} 21. Qc3 {[%emt 0:00:04]} Qc5 {[%emt 0:09:09]} 22. Qxc5 {[%emt 0:05:44]} Nxc5 {[%emt 0:00:05]} 23. Nc4 {[%emt 0:00:03]} f6 {[%emt 0:03:29]} 24. d4 {[%emt 0:00:03]} exd4 {[%emt 0:01:32]} 25. Rxd4 {[%emt 0:00:02]} Rfd8 {[%emt 0:01:54]} 26. Red1 {[%emt 0:00:23]} Rxd4 {[%emt 0:00:50]} 27. Rxd4 $11 {[%emt 0:00:02][%mdl 4096] Endgame KRN-KRN} Kf7 {[%emt 0:03:23]} 28. f3 {[%emt 0:13:10]} Ke7 {[%emt 0:00:59]} 29. Kf2 {[%emt 0:00:07]} g6 {[%emt 0:01:37]} 30. Ke3 {[%emt 0:00:05]} b5 {[%emt 0:00:57]} 31. Nd2 {[%emt 0:02:18]} Ne6 {[%emt 0:02:33]} 32. Rd3 {[%emt 0:00:09]} c5 {[%emt 0:01:10]} 33. Rd5 {[%emt 0:12:50]} Rc8 {[%emt 0:00:12]} 34. f4 {[%emt 0:00:00] [#]} a3 {[%emt 0:01:21]} 35. b3 {[%emt 0:00:00]} (35. bxa3 $14 Rc6 36. Nb3) 35... Nd4 $15 {[%emt 0:00:24] ...Nc2+ would be deadly.} 36. Kd3 {[%emt 0:00:00][%mdl 8192] [#] Wards off Nc2. Black keeps a firm grip on the game.} (36. e5 $15) 36... Nc6 $1 $19 {[%emt 0:00:38]} 37. Rxc5 {[%emt 0:00:00]} Nb4+ {[%emt 0:00:09][%mdl 64] Discovered Attack, Double Attack} 38. Kd4 {[%emt 0:00:00]} Nc2+ {[%emt 0:00:28]} 39. Kd5 {[%emt 0:00:00]} Nb4+ {[%emt 0:00:27]} 40. Kd4 {[%emt 0:00:00]} Nc2+ {[%emt 0:00:05]} 41. Kd5 {[%emt 0:36:40]} Rd8+ {[%emt 0:41:15][%mdl 64] Skewer} 42. Kc6 {[%emt 0:00:06]} Rxd2 {[%emt 0:00:00]} 43. Kxb5 {[%emt 0:00:00] KRN-KR} Nd4+ {[%emt 0:00:00]} (43... Rxg2 $2 {loses.} 44. Rc7+ Ke8 45. Rxh7 $19) 44. Kb4 {[%emt 0:00:00]} Rxa2 {[%emt 0:02:50][%cal Oa2c2] Black is clearly winning.} 45. Rc7+ {[%emt 0:00:00]} Ke6 {[%emt 0:00:00] ...Rc2 is the strong threat.} 46. g4 {[%emt 0:00:00]} (46. Rxh7 $142 Rxg2 47. Kxa3) 46... h6 {[%emt 0:00:00]} (46... Rh2 $142 {Threatens to win with ...a2.} 47. f5+ Kd6) 47. f5+ {[%emt 0:00:00]} gxf5 {[%emt 0:00:00]} 48. exf5+ {[%emt 0:00:00]} Ke5 {[%emt 0:00:00]} 49. Re7+ {[%emt 0:00:00]} Kf4 {[%emt 0:00:00]} 50. Rf7 {[%emt 0:00:00]} Nc2+ {[%emt 0:00:00]} 51. Kc3 {[%emt 0:00:00]} Ne3 {[%emt 0:00:00] Weighted Error Value: White=0.49/Black=0.50} 0-1

[Event "4NCL 2022-2023"]
[Site "Daventry"]
[Date "2023.03.19"]
[Round "8.26"]
[White "Bisby, Daniel L"]
[Black "Delaney, Killian"]
[Result "1/2-1/2"]
[ECO "B11"]
[WhiteElo "2277"]
[BlackElo "2300"]
[Annotator "TA"]
[PlyCount "82"]
[EventDate "2022.10.20"]
[EventType "team-tourn"]
[EventCountry "ENG"]
[SourceTitle "playchess.com"]
[Source "ChessBase"]
[SourceQuality "1"]
[TimeControl "40/6000+30:2400+30"]

{[%evp 9,82,20,23,28,28,20,19,4,27,27,31,18,29,22,30,0,52,45,48,44,58,50,81,53,53,53,54,53,53,47,68,73,73,61,73,35,46,46,40,18,19,0,0,0,0,0,6,2,12,0,0,0,0,0,8,21,28,0,0,-60,-60,-60,-60,-74,-66,-66,-48,-49,0,-33,0,0,0,0,0]} 1. e4 {[%emt 0:00:29]} c6 {[%emt 0:00:12]} 2. Nf3 {[%emt 0:00:58]} d5 {[%emt 0:00:13]} 3. Nc3 {[%emt 0:00:14]} Bg4 {[%emt 0:00:56]} 4. Be2 {[%emt 0:02:09]} dxe4 {[%emt 0:01:03]} 5. Nxe4 {[%emt 0:00:18]} Nf6 {[%emt 0:00:35]} 6. Nxf6+ {[%emt 0:02:18] B11: Caro-Kann: Two Knights Variation.} exf6 {[%emt 0:00:05][%cal Be7f6,Bf6f5][%mdl 32]} 7. d4 {[%emt 0:05:01]} Bd6 {[%emt 0:00:33]} 8. Nd2 {[%emt 0:03:43] [#]} Be6 $146 {[%emt 0:15:32]} ({Predecessor:} 8... Qe7 9. c3 Nd7 10. Nc4 Bc7 11. Be3 Bxe2 12. Qxe2 O-O 13. O-O f5 14. Qf3 Qe4 15. Nd2 Qxf3 16. Nxf3 Nf6 17. Rae1 Rfe8 18. Bc1 Rxe1 19. Rxe1 Re8 20. Rxe8+ Nxe8 {½-½ Rohde,M-Mohand Oussaid,M GER DESC email 2008}) 9. Ne4 {[%emt 0:01:36]} Be7 {[%emt 0:00:56]} 10. O-O {[%emt 0:03:37]} Nd7 {[%emt 0:16:12]} 11. c4 {[%emt 0:02:03] [#] And now d5 would win.} f5 {[%emt 0:01:11]} 12. d5 {[%emt 0:04:04]} Bxd5 {[%emt 0:00:11]} (12... fxe4 $11 13. dxe6 fxe6) 13. cxd5 $14 {[%emt 0:02:26]} fxe4 {[%emt 0:00:08]} 14. dxc6 {[%emt 0:01:45]} bxc6 {[%emt 0:00:07]} 15. Qa4 {[%emt 0:01:26]} Qb6 {[%emt 0:14:46]} 16. Qxe4 {[%emt 0:02:48] Black must now prevent Bf3.} Nf6 {[%emt 0:00:12]} 17. Qc2 {[%emt 0:09:16]} Nd5 {[%emt 0:01:32]} 18. b3 {[%emt 0:06:55]} O-O {[%emt 0:01:40]} 19. Bb2 {[%emt 0:00:18]} Bf6 {[%emt 0:08:35]} 20. Bxf6 {[%emt 0:01:58]} Nxf6 {[%emt 0:00:03][%cal Bd5f6,Bf6e4,Be4d2][%mdl 32]} 21. Rac1 {[%emt 0:00:28]} Rac8 {[%emt 0:00:10]} 22. Qc5 {[%emt 0:02:16]} Ne4 {[%emt 0:00:39]} 23. Qf5 {[%emt 0:04:11] Black is weak on the light squares} (23. Qxb6 {simplifies} axb6 24. Rfd1 h6 25. Bf1) 23... Rfe8 {[%emt 0:02:36][%cal Bf8e8,Be8e6,Be6d6,Bd6d3][%mdl 32]} 24. Rc2 {[%emt 0:04:06]} Rcd8 {[%emt 0:05:03]} 25. Bf3 {[%emt 0:05:45]} Nd2 {[%emt 0:03:19]} 26. Rfc1 {[%emt 0:12:29]} (26. Rxc6 $2 Nxf1 27. Rxb6 Re1 $19) 26... g6 {[%emt 0:00:54]} 27. Qf6 {[%emt 0:03:27]} Re6 $132 {[%emt 0:02:26][%mdl 2048] Black is fighting back} 28. Qc3 {[%emt 0:03:46]} Red6 {[%emt 0:05:33]} (28... Nxf3+ {simplifies} 29. Qxf3 Qa5 30. h3 Rdd6) 29. h3 {[%emt 0:05:31][%cal Rf3c6]} (29. Bxc6 $2 Nxb3 30. axb3 Rd1+ $19) 29... Rd3 {[%emt 0:08:10]} 30. Qxc6 {[%emt 0:00:22] aiming for Be2.} Nxf3+ {[%emt 0:00:07]} 31. gxf3 {[%emt 0:00:06]} Qa5 {[%emt 0:02:15]} 32. Qf6 {[%emt 0:05:40] With the idea Rc7.} R3d6 {[%emt 0:00:38]} 33. Qf4 {[%emt 0:01:47]} (33. Qe7 $5 {[%cal Rc2c8]}) 33... Rd1+ {[%emt 0:02:02]} 34. Rxd1 {[%emt 0:07:47]} (34. Kg2 $11) 34... Rxd1+ $11 {[%emt 0:00:03][%mdl 4096] Endgame KQR-KQR} 35. Kg2 {[%emt 0:00:20]} Qe1 {[%emt 0:00:18][%csl Gd1][%cal Re1g1][%mdl 1024] [#] Black has compensation.} 36. Qh2 {[%emt 0:02:54] Prevents Qg1+} (36. Kg3 $2 Qg1+ 37. Kh4 Rd5 $19) 36... Qf1+ {[%emt 0:00:28]} (36... g5 37. Rc8+ Kg7 38. Rc5 $11) 37. Kg3 {[%emt 0:00:05]} Qd3 {[%emt 0:00:14]} 38. Rc4 {[%emt 0:01:02]} Rd2 {[%emt 0:00:26]} (38... h5 $15) 39. Kg2 {[%emt 0:01:37] Threatens to win with Qb8+.} Qe3 {[%emt 0:01:44]} (39... Rxa2 {is a self mate.} 40. Qb8+ Kg7 41. Qe5+ f6 42. Qe7+ {[%mdl 64] Deflection} Kh6 43. Qf8+ Kh5 44. Rh4+ {[%mdl 64] Skewer} Kg5 45. f4+ (45. Rxh7 Rxf2+ {[%mdl 64] Decoy} 46. Kxf2 Qd2+ 47. Kg1 Qd1+ 48. Kh2 Qd2+ 49. Kg1 Qd1+ 50. Kh2 Qe2+ 51. Kh1 Qd1+ 52. Kh2 $11) 45... Kf5 46. Qc8+ (46. Rxh7 {leads to mate.} Qe4+ 47. Kg3 Qxf4+ 48. Kg2 Rxf2+ 49. Kh1 Qh2#) 46... Ke4 47. f5+ (47. Rxh7 $2 Qf3+ {[%mdl 64] Deflection, Double Attack} 48. Kh2 Rxf2+ 49. Kg1 Qg2#) 47... Kd5 48. Qd7+ (48. Rxh7 Qe4+ 49. Kg3 Qe5+ 50. Kg2 Qe4+ 51. Kg3 Qe5+ 52. Kg2 Qe4+ $11) 48... Kc5 49. Qxd3) (39... Qe2 $5 {[%cal Re2f2]} 40. Qb8+ Kg7 41. Qxa7 Rd1 $11) 40. Qg3 {[%emt 0:01:52]} Rxa2 {[%emt 0:00:37]} 41. Re4 {[%emt 0:00:00] Threatening mate with Qb8+.} Qc5 {[%emt 0:00:00] Weighted Error Value: White=0.10 (very precise) /Black=0.10 (very precise)} 1/2-1/2